Cogmind - Beta 14 @@@ ROGUE MODE // 2025.01.04 @ 22:13:37 Player: Nueadkie Result: Destroyed by 7C-36H(R) with Subdweller Machine Gun Performance ------------- Evolutions (0) 0 Regions Visited (2) 400 Robots Destroyed (29) 145 Value Destroyed (528) 528 Prototype IDs (0) 0 Alien Tech Used (0) 0 Bonus (0) 0 TOTAL SCORE: 1073 Bonus ------- None Cogmind --------- Core Integrity 0/250 Matter 215/300 Energy 100/100 System Corruption 0% Temperature Cool (0) Movement Walking (120) Location -10/Subcaves Parts ------- > --- POWER (1) -------- (None) > --- PROPULSION (2) --- Aluminum Leg Aluminum Leg > --- UTILITY (2) ------ Medium Storage Unit Structural Scanner > --- WEAPON (2) ------- Light Assault Rifle Improved Light Cannon > --- INVENTORY (10) --- Visual Processing Unit Improved Terrain Scanner Terrain Scan Processor ECM Suite Improved Light Cannon Improved Light Cannon EMP Blaster EMP Blaster Flail Flail Peak State ------------ > --- POWER ------------ Ion Engine > --- PROPULSION ------- Light Treads Light Treads > --- UTILITY ---------- Medium Storage Unit Structural Scanner > --- WEAPON ----------- Improved Light Cannon Improved Light Cannon > --- INVENTORY -------- Visual Processing Unit Improved Terrain Scanner Terrain Scan Processor ECM Suite Medium Laser Light Assault Rifle Light Cannon EMP Blaster EMP Blaster Flail [Rating: 10] Favorites ----------- Power Light Ion Engine Engine Light Ion Engine Propulsion Light Treads Treads Light Treads Leg Aluminum Leg Utility Medium Storage Unit Device Structural Scanner Storage Medium Storage Unit Weapon Medium Laser Energy Gun Medium Laser Ballistic Gun Light Assault Rifle Ballistic Cannon Improved Light Cannon Launcher EMP Blaster Impact Weapon Flail Build | -11 -10 -10 ------- Run | Yrd Mat Sub Slots Evolved . | . . . Power . | . . . Propulsion . | . . . Utility . | . . . Weapon . | . . . Parts Attached 19 | 6 11 2 Power 3 | 1 2 . Engine 3 | 1 2 . Core . | . . . Reactor . | . . . Propulsion 4 | 2 2 . Treads 2 | 2 . . Leg 2 | . 2 . Wheel . | . . . Hover . | . . . Flight . | . . . Utility 3 | 1 2 . Device 1 | . 1 . Storage 2 | 1 1 . Processor . | . . . Hackware . | . . . Protection . | . . . Artifact . | . . . Weapon 9 | 2 5 2 Energy Gun 2 | 2 . . Energy Cannon . | . . . Ballistic Gun 1 | . . 1 Ballistic Cannon 4 | . 3 1 Launcher 1 | . 1 . Special Weapon . | . . . Impact Weapon 1 | . 1 . Slashing Weapon . | . . . Piercing Weapon . | . . . Special Melee Weapon . | . . . Unidentified Prototypes . | . . . Parts Lost 5 | . 4 1 Power 3 | . 2 1 Propulsion 2 | . 2 . Utility . | . . . Weapon . | . . . Highest Loss Streak 3 | . 3 1 To Critical Strikes . | . . . Average Slot Usage (%) 93 | . 93 96 Engine 12 | . 12 10 Treads 19 | . 21 . Leg 6 | . 5 28 Device 8 | . 7 14 Storage 16 | . 17 14 Energy Gun 15 | . 17 . Ballistic Cannon 5 | . 5 8 Launcher 2 | . 1 5 Impact Weapon 3 | . 3 5 Peak Build Rating 10 | 6 10 10 Average Rating 7 | 5 7 9 On Entrance 5 | . 6 10 Naked Turns . | . . . Heaviest Build 24 | 12 24 20 Greatest Support 40 | 40 40 20 Greatest Overweight (x) 5 | . 5 . Average Overweight (x) . | . . . Largest Inventory Capacity 10 | 8 10 10 Average Capacity 9 | 7 9 10 Most Carried 10 | 4 10 10 Average Carried 7 | 2 8 9 Final Capacity 10 | 8 10 10 Final Carried 10 | 4 10 10 Class Distribution -------------------- 100% | Mutant Dominant Class ---------------- Mutant | -10/Materials Mutant | -10/Subcaves Resources | -11 -10 -10 ----------- Run | Yrd Mat Sub Matter Collected 589 | 226 363 . Remotely . | . . . Salvage Created 676 | 156 520 . Parts 35 | 12 23 . Haulers Intercepted 1 | . 1 . Recyclers Shooed . | . . . Parts Field Recycled . | . . . Retrieved Matter . | . . . Parts Self-Destructed . | . . . Prevented . | . . . Kills | -11 -10 -10 ------- Run | Yrd Mat Sub Combat Hostiles Destroyed 15 | . 14 1 Guns 9 | . 8 1 Cannons 4 | . 4 . Classes Destroyed 9 | 1 7 1 Builder 2 | . 2 . Tunneler 8 | 8 . . Hauler 1 | . 1 . Recycler 1 | . 1 . Operator 1 | . 1 . Watcher 1 | . 1 . Swarmer 5 | . 5 . Grunt 9 | . 9 . Subdweller 1 | . . 1 Best Kill Streak 4 | 4 3 1 Combat Bots Only 3 | . 3 1 Max Kills in Single Turn 1 | 1 1 1 Gunslinging . | . . . Exploded . | . . . Melee . | . . . Uniques/NPCs Destroyed . | . . . Combat | -11 -10 -10 -------- Run | Yrd Mat Sub Hostile Shots Fired 116 | . 87 29 Missed 32 | . 25 7 Damage Taken 1059 | . 620 439 Core 255 | . 94 161 Absorbed by Shields . | . . . Core Remaining (%) 100 | 100 . . Volleys Fired 102 | 17 71 14 Largest 2 | 2 2 2 Hottest 100 | 100 100 59 Shots Fired 199 | 34 137 28 Gun 135 | 34 87 14 Cannon 64 | . 50 14 Launcher . | . . . Special . | . . . Kinetic 78 | . 50 28 Thermal 121 | 34 87 . Explosive . | . . . Electromagnetic . | . . . Robot Hit Streak 8 | 4 8 6 Robot Miss Streak 4 | 2 4 3 Penetration Max . | . . . Secondary Targets . | . . . Shots Hit Robots 123 | 17 87 19 Core Hits 37 | 8 25 4 Critical Kills . | . . . Critical Parts Destroyed 1 | . 1 . Critical Strikes 13 | 2 11 . Burn 11 | 2 9 . Blast 1 | . 1 . Smash 1 | . 1 . Melee Attacks 3 | . 3 . Impact 3 | . 3 . Slashing . | . . . Piercing . | . . . Sneak Attacks 3 | . 3 . Combat Hostiles . | . . . Follow-up Attacks . | . . . Damage Inflicted 2068 | 209 1569 290 Guns 1015 | 209 741 65 Cannons 833 | . 608 225 Explosions . | . . . Melee 220 | . 220 . Ramming . | . . . Kinetic 898 | . 608 290 Thermal 950 | 209 741 . Explosive . | . . . Electromagnetic . | . . . Impact 220 | . 220 . Slashing . | . . . Piercing . | . . . Highest Corruption . | . . . Average Corruption . | . . . Corruption Purged . | . . . Corruption Blocked . | . . . Overload Shots . | . . . Overflow Damage 74 | . 74 . Projectiles 6 | . 6 . Explosions . | . . . Melee 68 | . 68 . Knockbacks 11 | . 7 4 Impact . | . . . Kinetic 11 | . 7 4 Secondary . | . . . Self-Inflicted Damage . | . . . Shots . | . . . Rammed . | . . . Targets Rammed . | . . . Kicked . | . . . Crushed . | . . . Highest Temperature 390 | 333 390 . Average Temperature 120 | 145 113 . Received Heat Transfer 204 | . 204 . Effects 6 | 2 4 . Shutdowns 1 | . 1 . Interference 4 | 2 2 . Matter Decay 1 | . 1 . Siege Activations . | . . . Robots Corrupted 2 | . 2 . Combat Hostiles . | . . . Parts Fried 4 | . 4 . Impact Corruptions 4 | . 4 . Robots Melted 2 | . 2 . Combat Hostiles 2 | . 2 . Parts Melted 16 | 2 14 . Heat Transferred 3626 | 777 2849 . Parts Sabotaged . | . . . Parts Stolen . | . . . Parts Stripped . | . . . Power Chain Reactions . | . . . Alert | -11 -10 -10 ------- Run | Yrd Mat Sub Peak Influence 392 | 40 392 . Initial 26 | . 26 . Average 185 | 17 228 . Maximum Alert Level 1 | . 1 . Low Security (%) 50 | 100 37 . Level 1 49 | . 62 . Level 2 . | . . . Level 3 . | . . . Level 4 . | . . . Level 5 . | . . . High Security . | . . . Max Security . | . . . Squads Dispatched 3 | . 3 . Investigation 2 | . 2 . Extermination . | . . . Reinforcement 1 | . 1 . Assault . | . . . Garrison . | . . . Intercept . | . . . Searches Triggered . | . . . Construction Impeded . | . . . Haulers Reinforced . | . . . Active Scanning Responses . | . . . Cargo Convoy Interrupts . | . . . Stealth | -11 -10 -10 --------- Run | Yrd Mat Sub Distress Signals . | . . . Communications Jammed . | . . . Distress Signals . | . . . Times Spotted 28 | . 26 2 Peak Tracking Total 3 | . 3 2 Tactical Retreats 6 | . 6 . Traps | -11 -10 -10 ------- Run | Yrd Mat Sub Traps Triggered 1 | . 1 . Indirectly . | . . . Trap Hack Attempts . | . . . Triggered . | . . . Disarmed . | . . . Reprogrammed . | . . . Reused . | . . . Traps Extracted . | . . . Installed . | . . . Triggered . | . . . Machines | -11 -10 -10 ---------- Run | Yrd Mat Sub Machines Disabled . | . . . Max in Single Turn . | . . . Machines Repaired . | . . . Machines Dismantled . | . . . Machines Sabotaged . | . . . Overloaded Fab Kills . | . . . Hacking | -11 -10 -10 --------- Run | Yrd Mat Sub Machines Accessed 3 | . 3 . Terminals 2 | . 2 . Fabricators . | . . . Repair Stations . | . . . Recycling Units 1 | . 1 . Scanalyzers . | . . . Garrison Access . | . . . Total Hacks 6 | . 6 . Successful 1 | . 1 . Failed 5 | . 5 . Catastrophic 1 | . 1 . Database Lockouts . | . . . Manual 5 | . 5 . Terminals 5 | . 5 . Fabricators . | . . . Repair Stations . | . . . Recycling Units 1 | . 1 . Scanalyzers . | . . . Garrison Access . | . . . Terminal Hacks 1 | . 1 . Part Schematic 1 | . 1 . Fabricator Hacks . | . . . Repair Station Hacks . | . . . Recycling Unit Hacks . | . . . Scanalyzer . | . . . Garrison Access Hacks . | . . . Unauthorized Hacks . | . . . Terminals . | . . . Fabricators . | . . . Repair Stations . | . . . Recycling Units . | . . . Scanalyzers . | . . . Garrison Access . | . . . Data Cores Recovered . | . . . Used . | . . . Hacking Detections 2 | . 2 . Full Trace Events 1 | . 1 . Feedback Events . | . . . Feedback Blocked . | . . . Robot Schematics Acquired . | . . . Robots Built . | . . . Authchips . | . . . Time . | . . . Total Robot Build Rating . | . . . Part Schematics Acquired 1 | . 1 . Parts Built . | . . . Authchips . | . . . Time . | . . . Total Part Build Rating . | . . . Parts Repaired . | . . . Time . | . . . Parts Recycled . | . . . Recycled Matter . | . . . Retrieved Matter . | . . . Retrieved Components . | . . . Parts Scanalyzed . | . . . Part Schematics Acquired . | . . . Parts Damaged . | . . . Bothacking | -11 -10 -10 ------------ Run | Yrd Mat Sub Used RIF Installer . | . . . Robots Hacked . | . . . Non-combat . | . . . Combat . | . . . Robot Hacks Applied . | . . . Relay Couplers Released . | . . . Fabnet Peak Effective % . | . . . Robots Rewired . | . . . Allies Hacked . | . . . Hacks Repelled . | . . . Allies | -11 -10 -10 -------- Run | Yrd Mat Sub Total Allies . | . . . Largest Group . | . . . Highest-Rated Group . | . . . Highest-Rated Ally . | . . . Total Orders . | . . . Ally Attacks . | . . . Total Damage . | . . . Kills . | . . . Allies Corrupted . | . . . Allies Melted . | . . . Intel | -11 -10 -10 ------- Run | Yrd Mat Sub Robot Analysis Total . | . . . Derelict Logs Recovered . | . . . Drone Launches . | . . . Drone Recoveries . | . . . Exploration | -11 -10 -10 ------------- Run | Yrd Mat Sub Turns Passed 1270 | 243 949 78 Spaces Moved 520 | 88 406 26 Core 11 | 3 8 . Treads 365 | 85 280 . Legs 144 | . 118 26 Wheels . | . . . Hover . | . . . Flight . | . . . Fastest Speed 50 | 50 120 120 Average Speed 150 | 156 151 120 Slowest Speed 300 | 160 300 120 Overloaded Moves . | . . . Propulsion Burnouts . | . . . Robots Hopped . | . . . Cave-ins Triggered . | . . . Exploration Rate (%) 16 | 5 42 3 Regions Visited 2 Branch Regions 1 Pre-discovered Areas . | . . . Known Exits Taken . | . . . Unknown Exits Taken 2 | 1 1 . Scrap Searched . | . . . Spaces Dug . | . . . Terrain Destroyed 3 | . 3 . Melee . | . . . Projectile 3 | . 3 . AOE . | . . . Terrain Rammed . | . . . Walls Destroyed . | . . . Machines Disabled . | . . . Actions | -11 -10 -10 --------- Run | Yrd Mat Sub Total 806 | 157 600 49 Wait 135 | 43 89 3 Move 518 | 87 405 26 Hop . | . . . Pick Up 18 | 4 12 2 Fast Attach 12 | 6 6 . Attach 7 | . 5 2 Detach 2 | . 2 . Swap . | . . . Drop 9 | . 7 2 Fire 102 | 17 71 14 Melee 3 | . 3 . Ram . | . . . Kick . | . . . Crush . | . . . Escape Stasis . | . . . Rewire . | . . . Trap . | . . . Miscellaneous . | . . . Route ------- -11/Scrapyard -10/Materials (discovered 2 exits: [*Mat] / [*Sub]) -10/Subcaves (discovered 1 exit: [*Mat]) History --------- Turn | Location | Event 32 | -11/Scrapyard | Discovered new exit (range 16) 244 | -11/Scrapyard | Entered Materials 302 | -10/Materials | Build established: Mutant 917 | -10/Materials | Discovered new exit (range 16) 1002 | -10/Materials | Lost 3 parts (1p2n) 1181 | -10/Materials | Discovered new exit (range 10) 1193 | -10/Materials | Entered Subcaves 1198 | -10/Subcaves | Discovered new exit (range 5) 1242 | -10/Subcaves | Core integrity fell below 50% 1258 | -10/Subcaves | Core integrity fell below 20% 1271 | -10/Subcaves | Destroyed by 7C-36H(R) with Subdweller Machine Gun Last Messages --------------- 01089_ R-06 Scavenger collects Sml. Storage Unit. 01094_ R-06 Scavenger collects Lgt. Cannon. 01112_ Acquired 35 matter. 01129_ Acquired Flail. 01129_ K-01 Serf cleans the Matter Pump. 01150_ Terminal unresponsive. 01181_ EXIT=FOUND LOCATION=UNKNOWN AMBIENT_HEAT=-10 GOAL=ESCAPE 01198_ EXIT=FOUND 01222_ Dropped EMP Blaster. 01223_ Dropped Flail. 01225_ Acquired EMP Blaster. 01227_ Acquired Flail. 01235_ ZR-MOL(R) knocked back. 01251_ Lgt. Ion Engine destroyed. 01255_ ZR-MOL(R) destroyed. 01261_ 7C-36H(R) knocked back. Map ----- +----------------------------------------------------+ | ?????????????????????????????????????????????????? | | ?????????????????????????????????????????????????? | | ?????????????????????????????????????????????????? | | ?????????????????????????????????????????????????? | | ?????????????????????????????????????????????????? | | ?????????????????????????????????????????????????? | | ?????????????????????????????????????????????????? | | ?????????????????????????????????????????????????? | | ?????????????????????????????????????????????????? | | ?????????????????????????????????????????????????? | | ?????????????????????????????????????????????????? | | ?????????????????????????????? ??????????????????? | | ??????????????########???????? ??????????????????? | | ????????????##########???#### ???????????????????? | | ????????????### ### ##### ???????????????????? | | ????????????## ###### ???????????????????? | | ?????????##### ## ??????????????????? | | ?????????##### ??????????????????? | | ?????????## ??????????????????? | | ???????## ## # #% ???????????????????? | | ???????## ## ##### ?????????????????????? | | ???????## ##### R ##?????????????????????? | | ???????## ##### ##?????????????????????? | | ???????### # ## ###?????????????????????? | | ???????### ### # % ##?????????????????????? | | ???????## ### ### @##?????????????????????? | | ???????## ### ##<<# ##?????????????????????? | | ???????### # #" $<# ##?????????????????????? | | ???????### < #"$$<# ##?????????????????????? | | ???????## ##<<## ##?????????????????????? | | ???????## # ### #### ##?????????????????????? | | ???????############ ##?????????????????????? | | ???????#####################?????????????????????? | | ?????????????????###########?????????????????????? | | ?????????????????????????????????????????????????? | | ?????????????????????????????????????????????????? | | ?????????????????????????????????????????????????? | | ?????????????????????????????????????????????????? | | ?????????????????????????????????????????????????? | | ?????????????????????????????????????????????????? | | ?????????????????????????????????????????????????? | | ?????????????????????????????????????????????????? | | ?????????????????????????????????????????????????? | | ?????????????????????????????????????????????????? | | ?????????????????????????????????????????????????? | | ?????????????????????????????????????????????????? | | ?????????????????????????????????????????????????? | | ?????????????????????????????????????????????????? | | ?????????????????????????????????????????????????? | | ?????????????????????????????????????????????????? | +----------------------------------------------------+ Best States ------------- Heat Dissipation 25 Energy Generation 10 Energy Capacity 250 Matter Stores 300 Matter Capacity 300 Sight Range 16 Terrain Scan Density 10 Evasion (%) 55 Recoil Reduction 2 Item Schematics ----------------- Seismic Detector | -10/Materials | Hacked Robot Schematics ------------------ None Fabricated ------------ Nothing Alien Tech Used ----------------- None Achievements -------------- None Challenges ------------ None Game ------ Seed ChromaticMassThermoblaster Manual? 0 Play Time 00:11:21 Cumulative 19.7 hours Start 2025.01.04 @ 22:03:07 End 2025.01.04 @ 22:13:37 Sessions 1 Manual Loads 0 Difficulty Rogue Special Mode None Game No. 25 Rogue 25 Adventurer 0 Explorer 0 Win Type - Total 0 Types 0/0/0/0/0/0/0/0/0 Lore% 12 Gallery% 22 Achievement% 20 Wizard Run 0 Options --------- Layout 1 ASCII 0 Keyboard 1 Movement Vi Keybinds 0 Fullscreen 1 Font 24/Smallcaps Map View 50x35 Zoom Use 0% Tactical HUD 1 Map Filters NONE Filters NONE Steam 1 RUN: 5bedd7b4-ed21-4f7c-9c42-5669f49cf691